Cogmind - Beta 13 @@@ ROGUE MODE // 2024.05.28 @ 23:00:28 Player: Comet Result: Destroyed by G-47 Trooper with Particle Gun Performance ------------- Evolutions (2) 1000 Regions Visited (5) 1000 Robots Destroyed (65) 325 Value Destroyed (1310) 1310 Prototype IDs (27) 540 Alien Tech Used (0) 0 Bonus (398) 398 TOTAL SCORE: 4573 Bonus ------- Follower Combat Kills 98 Aligned with FarCom 300 Cogmind --------- Core Integrity 0/550 Matter 246/300 Energy 100/100 System Corruption 0% Temperature Cool (9) Movement Core (350) Ox6 Location -8/Materials Parts ------- > --- POWER (1) -------- (None) > --- PROPULSION (4) --- (None) > --- UTILITY (4) ------ Large Storage Unit > --- WEAPON (2) ------- (None) > --- INVENTORY (15) --- Medium Storage Unit High-capacity Storage Unit Structural Scanner Signal Interpreter Improved Terrain Scanner ECM Suite Light Cannon Grenade Launcher Mining Laser Hammer Peak State ------------ > --- POWER ------------ Light Nuclear Core > --- PROPULSION ------- Aluminum Leg Aluminum Leg Carbon-fiber Leg > --- UTILITY ---------- Large Storage Unit 0b10 Alert Chip Light Armor Plating > --- WEAPON ----------- Beamcaster Rocket Launcher > --- INVENTORY -------- Medium Storage Unit High-capacity Storage Unit Structural Scanner Signal Interpreter Improved Terrain Scanner ECM Suite Light Cannon Grenade Launcher Mining Laser Hammer [Rating: 24] Favorites ----------- Power Light Nuclear Core Engine Ion Engine Power Core Light Nuclear Core Propulsion Light Treads Treads Light Treads Leg Aluminum Leg Wheel Wheel Utility Light Armor Plating Device Improved Terrain Scanner Storage Medium Storage Unit Processor 0b10 Alert Chip Protection Light Armor Plating Weapon Light Cannon Energy Gun Beamcaster Energy Cannon Heavy Particle Cannon Ballistic Gun Light Assault Rifle Ballistic Cannon Light Cannon Launcher Rocket Launcher Build | -11 -10 -10 -10 -9 -8 ------- Run | Yrd Mat Min Exi Min Mat Slots Evolved 4 | . . . . . 4 Power . | . . . . . . Propulsion 2 | . . . . . 2 Utility 2 | . . . . . 2 Weapon . | . . . . . . Parts Attached 53 | 6 18 11 . 4 14 Power 9 | 2 2 1 . 2 2 Engine 5 | 2 . 1 . 2 . Core 4 | . 2 . . . 2 Reactor . | . . . . . . Propulsion 15 | 2 5 3 . . 5 Treads 4 | . 1 3 . . . Leg 9 | 2 2 . . . 5 Wheel 2 | . 2 . . . . Hover . | . . . . . . Flight . | . . . . . . Utility 12 | . 6 3 . 1 2 Device 1 | . . 1 . . . Storage 3 | . 2 . . 1 . Processor 1 | . . . . . 1 Hackware . | . . . . . . Protection 7 | . 4 2 . . 1 Artifact . | . . . . . . Weapon 17 | 2 5 4 . 1 5 Energy Gun 4 | 1 . . . . 3 Energy Cannon 1 | . . . . . 1 Ballistic Gun 4 | 1 1 . . 1 1 Ballistic Cannon 3 | . 2 1 . . . Launcher 5 | . 2 3 . . . Special Weapon . | . . . . . . Impact Weapon . | . . . . . . Slashing Weapon . | . . . . . . Piercing Weapon . | . . . . . . Special Melee Weapon . | . . . . . . Unidentified Prototypes 2 | . . . . . 2 Parts Lost 18 | . 1 1 . 2 14 Power 4 | . . 1 . 1 2 Propulsion 8 | . 1 . . . 7 Utility 2 | . . . . . 2 Weapon 4 | . . . . 1 3 Highest Loss Streak 12 | . 1 1 . 2 12 To Critical Strikes . | . . . . . . Average Slot Usage (%) 97 | . 98 99 100 99 71 Engine 6 | . . 7 14 13 6 Core 6 | . 13 6 . . 1 Treads 16 | . 1 26 28 28 11 Leg 9 | . 22 1 . . 11 Wheel 1 | . 2 . . . . Device 1 | . . 5 . . . Storage 12 | . 10 14 14 14 9 Protection 13 | . 16 8 14 14 7 Ballistic Gun 4 | . 7 . . 12 2 Ballistic Cannon 11 | . 11 19 14 1 . Launcher 10 | . 9 8 14 14 6 Naked Turns . | . . . . . . Heaviest Build 52 | 8 52 25 25 33 37 Greatest Support 40 | 20 20 40 40 40 40 Greatest Overweight (x) 11 | . 5 1 . . 11 Average Overweight (x) . | . . . . . . Largest Inventory Capacity 20 | 5 20 10 10 15 15 Average Capacity 10 | 5 9 10 10 14 15 Most Carried 11 | 3 7 10 10 11 11 Average Carried 7 | . 5 8 9 10 10 Final Capacity 15 | 5 10 10 10 15 15 Final Carried 11 | 3 7 9 10 11 10 Class Distribution -------------------- 89% | Mutant 10% | Scavenger-Mutant Dominant Class ---------------- Mutant | -10/Materials Mutant | -10/Mines Mutant | -10/Exiles Mutant | -9/Mines Scavenger-Mutant | -8/Materials Resources | -11 -10 -10 -10 -9 -8 ----------- Run | Yrd Mat Min Exi Min Mat Matter Collected 1582 | 272 576 414 . 175 145 Remotely . | . . . . . . Salvage Created 1960 | 91 617 566 . 342 344 Parts 116 | 10 41 29 . 16 20 Haulers Intercepted 3 | . 2 . . . 1 Recyclers Shooed 4 | . 3 1 . . . Parts Field Recycled . | . . . . . . Retrieved Matter . | . . . . . . Parts Self-Destructed . | . . . . . . Prevented . | . . . . . . Kills | -11 -10 -10 -10 -9 -8 ------- Run | Yrd Mat Min Exi Min Mat Combat Hostiles Destroyed 37 | 1 11 10 . 6 9 Guns 11 | 1 3 . . 1 6 Cannons 12 | . 1 9 . . 2 AOE 14 | . 7 1 . 5 1 Classes Destroyed 9 | 3 4 2 . . . Worker 6 | 1 4 . . 1 . Builder 5 | . 5 . . . . Tunneler 1 | 1 . . . . . Hauler 3 | . 2 . . . 1 Recycler 10 | . 1 6 . 3 . Watcher 3 | . 3 . . . . Swarmer 13 | . . 6 . 3 4 Grunt 22 | 1 11 2 . 3 5 Sentry 2 | . . 2 . . . Best Kill Streak 7 | 1 7 5 . 3 5 Combat Bots Only 5 | 1 4 3 . 3 5 Max Kills in Single Turn 2 | 1 2 1 . 2 2 Gunslinging . | . . . . . . Exploded 2 | . 2 1 . 2 1 Melee . | . . . . . . Uniques/NPCs Destroyed . | . . . . . . Combat | -11 -10 -10 -10 -9 -8 -------- Run | Yrd Mat Min Exi Min Mat Hostile Shots Fired 280 | 6 55 66 . 10 143 Missed 73 | 1 16 17 . 2 37 Damage Taken 3109 | 54 558 558 . 150 1789 Core 707 | . 100 46 . . 561 Absorbed by Shields . | . . . . . . Redirected to Shielding 25 | . 25 . . . . Regen/Repaired (Parts) 163 | . 163 . . . . Core Remaining (%) 70 | 100 . . . 41 . Volleys Fired 241 | 12 127 39 . 25 38 Largest 2 | 2 2 2 . 2 2 Hottest 108 | 60 70 70 . 56 108 Shots Fired 310 | 24 149 68 . 28 41 Gun 178 | 24 107 . . 20 27 Cannon 92 | . 21 62 . . 9 Launcher 40 | . 21 6 . 8 5 Special . | . . . . . . Kinetic 227 | 12 128 62 . 20 5 Thermal 31 | . . . . . 31 Explosive 40 | . 21 6 . 8 5 Electromagnetic 12 | 12 . . . . . Robot Hit Streak 7 | 6 7 7 . 6 6 Robot Miss Streak 7 | 1 5 7 . 2 2 Penetration Max . | . . . . . . Secondary Targets . | . . . . . . Shots Hit Robots 156 | 13 73 33 . 15 22 Core Hits 124 | 6 58 24 . 18 18 Critical Kills . | . . . . . . Critical Parts Destroyed . | . . . . . . Critical Strikes 4 | . . 1 . . 3 Burn 3 | . . . . . 3 Blast 1 | . . 1 . . . Melee Attacks . | . . . . . . Impact . | . . . . . . Slashing . | . . . . . . Piercing . | . . . . . . Sneak Attacks . | . . . . . . Combat Hostiles . | . . . . . . Follow-up Attacks . | . . . . . . Damage Inflicted 3873 | 144 1796 679 . 581 673 Guns 1079 | 144 470 . . 208 257 Cannons 940 | . 229 561 . . 150 Explosions 1835 | . 1097 115 . 357 266 Melee . | . . . . . . Ramming 19 | . . 3 . 16 . Kinetic 1582 | 47 699 561 . 208 67 Thermal 340 | . . . . . 340 Explosive 1789 | . 1051 115 . 357 266 Electromagnetic 143 | 97 46 . . . . Impact . | . . . . . . Slashing . | . . . . . . Piercing . | . . . . . . Highest Corruption . | . . . . . . Average Corruption . | . . . . . . Corruption Purged . | . . . . . . Corruption Blocked . | . . . . . . Overload Shots . | . . . . . . Overflow Damage 42 | . 32 . . 3 7 Projectiles 14 | . 7 . . . 7 Explosions 28 | . 25 . . 3 . Melee . | . . . . . . Knockbacks 5 | . 2 3 . . . Impact . | . . . . . . Kinetic 5 | . 2 3 . . . Secondary . | . . . . . . Self-Inflicted Damage 172 | . 88 8 . 76 . Shots 6 | . 3 1 . 2 . Rammed 8 | . . 2 . 6 . Targets Rammed 8 | . . 2 . 6 . Kicked . | . . . . . . Crushed . | . . . . . . Highest Temperature 390 | 70 156 312 . 24 390 Average Temperature 89 | 27 34 89 . 14 187 Received Heat Transfer 1407 | 30 267 153 . 21 936 Effects 7 | . . . . . 7 Shutdowns 1 | . . . . . 1 Energy Bleed 2 | . . . . . 2 Interference 3 | . . . . . 3 Matter Decay 1 | . . . . . 1 Siege Activations . | . . . . . . Robots Corrupted . | . . . . . . Combat Hostiles . | . . . . . . Parts Fried . | . . . . . . Impact Corruptions . | . . . . . . Robots Melted . | . . . . . . Combat Hostiles . | . . . . . . Parts Melted 1 | . . . . . 1 Heat Transferred 777 | . . . . . 777 Parts Sabotaged . | . . . . . . Parts Stolen . | . . . . . . Parts Stripped . | . . . . . . Power Chain Reactions . | . . . . . . Alert | -11 -10 -10 -10 -9 -8 ------- Run | Yrd Mat Min Exi Min Mat Peak Influence 306 | 45 306 155 . 126 218 Initial 48 | . 29 . . . 48 Average 64 | 16 80 42 . 45 109 Maximum Alert Level 1 | . 1 . . . 1 Low Security (%) 97 | 100 96 100 . 100 88 Level 1 2 | . 3 . . . 11 Level 2 . | . . . . . . Level 3 . | . . . . . . Level 4 . | . . . . . . Level 5 . | . . . . . . High Security . | . . . . . . Max Security . | . . . . . . Squads Dispatched 8 | . 2 . . . 6 Investigation 4 | . 2 . . . 2 Extermination . | . . . . . . Reinforcement 1 | . . . . . 1 Assault . | . . . . . . Garrison 3 | . . . . . 3 Intercept . | . . . . . . Searches Triggered . | . . . . . . Construction Impeded 1 | . . . . . 1 Haulers Reinforced . | . . . . . . Active Scanning Responses . | . . . . . . Cargo Convoy Interrupts . | . . . . . . Stealth | -11 -10 -10 -10 -9 -8 --------- Run | Yrd Mat Min Exi Min Mat Distress Signals 2 | . 1 . . . 1 Communications Jammed . | . . . . . . Distress Signals . | . . . . . . Times Spotted 58 | 1 16 10 . 7 24 Peak Tracking Total 8 | 1 6 3 . 4 8 Tactical Retreats 2 | . . . . . 2 Traps | -11 -10 -10 -10 -9 -8 ------- Run | Yrd Mat Min Exi Min Mat Traps Triggered 2 | . 2 . . . . Indirectly 1 | . 1 . . . . Trap Hack Attempts . | . . . . . . Triggered . | . . . . . . Disarmed . | . . . . . . Reprogrammed . | . . . . . . Reused . | . . . . . . Traps Extracted . | . . . . . . Installed . | . . . . . . Triggered . | . . . . . . Machines | -11 -10 -10 -10 -9 -8 ---------- Run | Yrd Mat Min Exi Min Mat Machines Disabled 8 | . 6 . . . 2 Max in Single Turn 1 | . 1 . . . 1 Machines Repaired . | . . . . . . Machines Dismantled . | . . . . . . Machines Sabotaged . | . . . . . . Overloaded Fab Kills . | . . . . . . Hacking | -11 -10 -10 -10 -9 -8 --------- Run | Yrd Mat Min Exi Min Mat Machines Accessed 16 | . 9 . 5 1 1 Terminals 8 | . 6 . . 1 1 Fabricators . | . . . . . . Repair Stations 1 | . 1 . . . . Recycling Units 2 | . 2 . . . . Scanalyzers . | . . . . . . Garrison Access . | . . . . . . Total Hacks 75 | . 21 . 50 1 3 Successful 70 | . 17 . 50 1 2 Failed 5 | . 4 . . . 1 Catastrophic 1 | . 1 . . . . Database Lockouts . | . . . . . . Manual 3 | . . . 3 . . Terminals 13 | . 9 . . 1 3 Fabricators . | . . . . . . Repair Stations 7 | . 7 . . . . Recycling Units 5 | . 5 . . . . Scanalyzers . | . . . . . . Garrison Access . | . . . . . . Terminal Hacks 59 | . 6 . 50 1 2 Record 52 | . 1 . 49 1 1 Prototype ID Bank 1 | . 1 . . . . Alert Level 1 | . 1 . . . . Hauler Manifests 3 | . 2 . . . 1 Registered Components 1 | . 1 . . . . Derelict Proto ID Bank 1 | . . . 1 . . Fabricator Hacks . | . . . . . . Repair Station Hacks 6 | . 6 . . . . Scan Component 3 | . 3 . . . . Repair 3 | . 3 . . . . Recycling Unit Hacks 5 | . 5 . . . . Report Inventory 4 | . 4 . . . . Retrieve Matter 1 | . 1 . . . . Scanalyzer . | . . . . . . Garrison Access Hacks . | . . . . . . Unauthorized Hacks . | . . . . . . Terminals . | . . . . . . Fabricators . | . . . . . . Repair Stations . | . . . . . . Recycling Units . | . . . . . . Scanalyzers . | . . . . . . Garrison Access . | . . . . . . Data Cores Recovered . | . . . . . . Used . | . . . . . . Hacking Detections 5 | . 4 . . . 1 Full Trace Events 3 | . 2 . . . 1 Feedback Events . | . . . . . . Feedback Blocked . | . . . . . . Robot Schematics Acquired . | . . . . . . Robots Built . | . . . . . . Authchips . | . . . . . . Time . | . . . . . . Total Robot Build Rating . | . . . . . . Part Schematics Acquired . | . . . . . . Parts Built . | . . . . . . Authchips . | . . . . . . Time . | . . . . . . Total Part Build Rating . | . . . . . . Parts Repaired 3 | . 3 . . . . Time 90 | . 90 . . . . Parts Recycled . | . . . . . . Recycled Matter . | . . . . . . Retrieved Matter 94 | . 94 . . . . Retrieved Components . | . . . . . . Parts Scanalyzed . | . . . . . . Part Schematics Acquired . | . . . . . . Parts Damaged . | . . . . . . Bothacking | -11 -10 -10 -10 -9 -8 ------------ Run | Yrd Mat Min Exi Min Mat Used RIF Installer . | . . . . . . Robots Hacked . | . . . . . . Non-combat . | . . . . . . Combat . | . . . . . . Robot Hacks Applied . | . . . . . . Relay Couplers Released . | . . . . . . Fabnet Peak Effective % . | . . . . . . Robots Rewired . | . . . . . . Allies Hacked . | . . . . . . Hacks Repelled . | . . . . . . Allies | -11 -10 -10 -10 -9 -8 -------- Run | Yrd Mat Min Exi Min Mat Total Allies 6 | . . . . 6 . Largest Group 6 | . . . . 6 6 Highest-Rated Group 111 | . . . . 111 111 Highest-Rated Ally 31 | . . . . 31 31 Total Orders 1 | . . . . 1 . FOLLOW 1 | . . . . 1 . Ally Attacks 32 | . . . . 8 24 Total Damage 457 | . . . . 148 309 Kills 7 | . . . . 4 3 Allies Corrupted . | . . . . . . Allies Melted . | . . . . . . Intel | -11 -10 -10 -10 -9 -8 ------- Run | Yrd Mat Min Exi Min Mat Robot Analysis Total . | . . . . . . Derelict Logs Recovered 2 | . . 1 . 1 . Drone Launches . | . . . . . . Drone Recoveries . | . . . . . . Exploration | -11 -10 -10 -10 -9 -8 ------------- Run | Yrd Mat Min Exi Min Mat Turns Passed 8019 | 118 2980 1715 1465 1305 436 Spaces Moved 4227 | 72 1450 922 913 724 146 Core 21 | 17 . . . . 4 Treads 2778 | . 133 903 913 724 105 Legs 1368 | 55 1257 19 . . 37 Wheels 60 | . 60 . . . . Hover . | . . . . . . Flight . | . . . . . . Fastest Speed 50 | 50 80 160 160 160 120 Average Speed 167 | 103 184 160 160 160 168 Slowest Speed 600 | 120 470 240 160 160 600 Overloaded Moves . | . . . . . . Propulsion Burnouts . | . . . . . . Robots Hopped . | . . . . . . Cave-ins Triggered . | . . . . . . Exploration Rate (%) 67 | 5 99 98 93 97 11 Regions Visited 5 Branch Regions 3 Pre-discovered Areas 1 | . . . 1 . . Known Exits Taken . | . . . . . . Unknown Exits Taken 5 | 1 1 1 1 1 . Scrap Searched 6 | . . 2 . 4 . Spaces Dug . | . . . . . . Terrain Destroyed 261 | . 91 52 . 84 34 Melee . | . . . . . . Projectile 3 | . . . . . 3 AOE 258 | . 91 52 . 84 31 Terrain Rammed . | . . . . . . Walls Destroyed . | . . . . . . Machines Disabled . | . . . . . . Actions | -11 -10 -10 -10 -9 -8 --------- Run | Yrd Mat Min Exi Min Mat Total 4848 | 91 1626 1083 919 838 291 Wait 276 | . 7 104 . 78 87 Move 4222 | 71 1449 921 912 723 146 Hop . | . . . . . . Pick Up 20 | 2 9 2 4 1 2 Fast Attach 31 | 5 13 3 . 1 9 Attach 3 | . . . . 1 2 Detach 1 | . 1 . . . . Swap 19 | 1 5 8 . 2 3 Drop 27 | . 15 4 3 1 4 Fire 241 | 12 127 39 . 25 38 Melee . | . . . . . . Ram . | . . . . . . Kick . | . . . . . . Crush 8 | . . 2 . 6 . Escape Stasis . | . . . . . . Rewire . | . . . . . . Trap . | . . . . . . Miscellaneous . | . . . . . . Route ------- -11/Scrapyard -10/Materials (discovered 5 exits: [*Mat x3] / [*Min x2]) -10/Mines (discovered 3 exits: [*Mat x2] / *Exi) -10/Exiles -9/Mines (discovered 2 exits: *Mat x2) -8/Materials (discovered 1 exit: Fac) History --------- Turn | Location | Event 2 | -11/Scrapyard | Met Revision 17 63 | -11/Scrapyard | Discovered new exit (range 8) 119 | -11/Scrapyard | Entered Materials 302 | -10/Materials | Build established: Mutant 461 | -10/Materials | Discovered new exit (range 8) 600 | -10/Materials | Discovered new exit (range 12) 934 | -10/Materials | Discovered new exit (range 11) 1524 | -10/Materials | Discovered new exit (range 15) 1862 | -10/Materials | Discovered new exit (range 11) 2201 | -10/Materials | Repaired Lgt. Armor Plating 2235 | -10/Materials | Repaired Grenade Launcher 2280 | -10/Materials | Repaired Lgt. Nuclear Core 3099 | -10/Materials | Entered Mines 3318 | -10/Mines | Core integrity fell below 50% 3479 | -10/Mines | Build established: Scavenger-Mutant 3575 | -10/Mines | Discovered new exit (range 8) 3588 | -10/Mines | Learned Materials security intel 4015 | -10/Mines | Build established: Mutant 4357 | -10/Mines | Deemed a non-threat by the Exiles lab entrance 4359 | -10/Mines | Discovered new exit (range 5) 4482 | -10/Mines | Discovered new exit (range 6) 4489 | -10/Mines | Received a Rocket Launcher from a helpful Derelict 4814 | -10/Mines | Entered Exiles 4864 | -10/Exiles | Met 8R-AWN 4893 | -10/Exiles | Met EX-HEX 5014 | -10/Exiles | Met EX-BIN 5155 | -10/Exiles | Aligned with FarCom system 5157 | -10/Exiles | Given EX-Vault access code 5214 | -10/Exiles | Met EX-DEC 5284 | -10/Exiles | Visited The Gauntlet 5582 | -10/Exiles | Discovered new exit (range 14) 5866 | -10/Exiles | Learned location of Zion (-7) 6048 | -10/Exiles | Opened EX-Vault 6098 | -10/Exiles | Found 0b10 Alert Chip 6125 | -10/Exiles | Found Supersonic Drone Bay 6166 | -10/Exiles | Warned to stay clear of 0b10 Research branches 6279 | -10/Exiles | Left Exiles lab with 0b10 Alert Chip 6279 | -10/Exiles | Entered Mines 6673 | -9/Mines | Discovered new exit (range 8) 6981 | -9/Mines | Assisted by bots powering up and referring to "LRC-V3" 7410 | -9/Mines | Received a Mining Laser from a helpful Derelict 7549 | -9/Mines | Discovered new exit (range 5) 7584 | -9/Mines | Entered Materials 7584 | -8/Materials | Accompanied by 6 allies 7584 | -8/Materials | Evolved 4 slots: Propulsion x2, Utility x2 7585 | -8/Materials | Identified exit to Factory 7589 | -8/Materials | Led the pair of lost Derelicts to an unsafe place 7647 | -8/Materials | Garrison activated, responded to threat 7703 | -8/Materials | Lost 6 allies 7996 | -8/Materials | Core integrity fell below 50% 8015 | -8/Materials | Core integrity fell below 20% 8020 | -8/Materials | Destroyed by G-47 Trooper with Particle Gun Last Messages --------------- K-01 Serf collects debris. Hrd. Light Armor Plating destroyed. Critical hit (Burn: +37). K-01 Serf collects debris. Critical hit (Burn: +37). Lgt. Nuclear Core destroyed. Acquired Aluminum Leg. K-01 Serf collects debris. Acquired Aluminum Leg. K-01 Serf collects debris. Aluminum Leg destroyed. Critical hit (Burn: +37). Hvy. Particle Cannon destroyed. K-01 Serf collects debris. The lore collection interface (ESC then open Records) is a centralized reference of all the lore you've uncovered throughout all runs. Aluminum Leg destroyed. U-05 Engineer builds a Wall. 0b10 Alert Chip severed. Map ----- +----------------------------------------------------+ | ???????????????????????????????????????????? | | ???????????????????????????????????????????? | | ???????????????????????????????????????????? | | ??????????????????????????????# ?????????? | | ??????????????????????????????# ?????????? | | ??????????????????????????????# ?????????? | | ??????????????????????????????# #????????? | | ????????????????????????###+### #????????? | | ???????????????????????? #????????? | | ???????????????????????# ]#????????? | | ??????????????????????"" #????????? | | ??????????????????????"" +????????? | | ??????????????????????"T a #????????? | | ??????????????????????"" """ #????????? | | ??????????????????????"" """"" #####????? | | ????????????????######## """"" #????? | | ???????????????? w """"" #????? | | ???????????????? """ #????? | | ????????????????? #####????? | | ??????????????????????# #????????? | | ??????????????????????# #????????? | | ??????????????????????# #????????? | | ?????????????########## #????????? | | ?????????????# # #????????? | | ?????????????# # " " #????????? | | ?????????????# #w @ "G" #####????? | | ???????????#+# g# lb % " !##???? | | ???????????# # g !#???? | | ???????????# # # !#???? | | ???????????# # ] # ###+#### !#???? | | ???######### # k! #######%% ## !#???? | | ? ! # # %[% #?????#% !% ## !##???? | | ?" "" # ##g###"###?????#%% %[#####????? | | ?"" " "" ! #?## #??????#%""" #????????? | | """ #[%[ ##??##??????# """ #????????? | | """ #[![ ############%""" #????????? | | " #[ [[g*g + [=%*#????????? | | # # ############# = [ #????????? | | # # #???????????#[ #????????? | | ## ####???????????# "T" #????????? | | #??????????????# """ #????????? | | #??????????????# #????????? | | ??????????????#######????????? | | ########+#?????????????????????????????? | | ? ????????????????????????????????????????? | | ? ?????????????????????????????????????????? | | ???????????????????????????????????????????? | | ???????????????????????????????????????????? | | ???????????????????????????????????????????? | | ???????????????????????????????????????????? | +----------------------------------------------------+ Best States ------------- Heat Dissipation 31 Energy Generation 14 Energy Capacity 250 Matter Stores 300 Matter Capacity 300 Sight Range 16 Terrain Scan Range 16 Terrain Scan Density 10 Armor Coverage 150 Weapon Shielding 33 Evasion (%) 55 Recoil Reduction 2 Item Schematics ----------------- None Robot Schematics ------------------ None Fabricated ------------ Nothing Alien Tech Used ----------------- None Achievements -------------- Remodeling The More The Merrier Tourist Challenges ------------ None Game ------ Seed DirtyWeldingCharger Manual? 0 Play Time 01:05:40 Cumulative 2.7 hours Start 2024.05.28 @ 21:48:54 End 2024.05.28 @ 23:00:28 Sessions 1 Manual Loads 0 Difficulty Rogue Special Mode None Game No. 2 Rogue 2 Adventurer 0 Explorer 0 Win Type - Total 0 Types 0/0/0/0/0/0/0/0/0 Lore% 10 Gallery% 5 Achievement% 8 Wizard Run 0 Options --------- Layout 1 ASCII 0 Keyboard 0 Movement Mouse Keybinds 0 Fullscreen 1 Font 24/Smallcaps Map View 50x35 Zoom Use 0% Tactical HUD 0 Map Filters NONE Filters NONE Steam 1 RUN: 4bb289e8-6f56-4665-81ed-f7f68ac77f59